bitfinex/quotes_BTCUSD_20240620
["timestamp","ask_amount","ask_price","bid_price","bid_amount"]
[1718926800623,0.0749,65102.0,65101.0,0.07628172]
[1718926800862,0.08425222,65102.0,65101.0,0.07628172]
[1718926802800,0.08425222,65102.0,65098.0,0.000946]
[1718926802996,0.0749,65099.0,65098.0,0.000946]
[1718926803401,0.08425033,65099.0,65098.0,0.000946]
[1718926804580,0.09382402,65099.0,65098.0,0.000946]
[1718926807318,0.09382399,65099.0,65098.0,0.000946]
[1718926809275,0.08425033,65099.0,65098.0,0.000946]
[1718926809478,0.09382414,65099.0,65098.0,0.000946]
[1718926811528,0.09374603,65099.0,65098.0,0.000946]
[1718926812659,0.08425033,65099.0,65098.0,0.000946]
[1718926812826,0.09382414,65099.0,65098.0,0.000946]
[1718926815839,0.1002634,65099.0,65098.0,0.000946]
[1718926816024,0.10983708,65099.0,65098.0,0.000946]
[1718926819204,0.10983743,65099.0,65098.0,0.000946]
[1718926820599,0.01892436,65099.0,65098.0,0.000946]
[1718926820755,0.09382436,65099.0,65098.0,0.000946]
[1718926821195,0.09382436,65099.0,65079.0,0.19352466]
[1718926821374,0.0749,65084.0,65080.0,0.29352466]
[1718926821576,0.08447403,65084.0,65079.0,0.19352466]
[1718926821775,0.09379022,65084.0,65079.0,0.19352466]
[1718926821992,0.09379022,65084.0,65080.0,0.19352466]
[1718926822471,0.09378909,65084.0,65080.0,0.19352466]
[1718926822680,0.09378909,65084.0,65079.0,0.19352466]
[1718926823107,0.09378909,65084.0,65083.0,0.09028172]
[1718926823328,0.0844729,65084.0,65083.0,0.09028172]
[1718926823532,0.0844729,65084.0,65083.0,0.10428172]
[1718926823734,0.0844729,65084.0,65083.0,0.09028172]
[1718926823956,0.09378909,65084.0,65083.0,0.09028172]
[1718926824159,0.09378909,65084.0,65083.0,0.28888172]
[1718926824357,0.09378909,65084.0,65083.0,0.27488172]
[1718926824735,0.09378909,65084.0,65083.0,0.27288172]
[1718926825072,0.09378909,65084.0,65083.0,0.26588172]
[1718926825424,0.08421619,65084.0,65083.0,0.26588172]
[1718926825619,0.09378867,65084.0,65083.0,0.26588172]
[1718926826508,0.09378867,65084.0,65083.0,0.27588172]
[1718926826691,0.09378867,65084.0,65083.0,0.27188172]
[1718926826821,0.00957248,65084.0,65083.0,0.26588172]
[1718926827024,0.08447248,65084.0,65083.0,0.26788172]
[1718926827234,0.08447248,65084.0,65083.0,0.27188172]
[1718926828859,0.0749,65084.0,65083.0,0.27188172]
[1718926829091,0.08447244,65084.0,65083.0,0.27188172]
[1718926829616,0.08447244,65084.0,65078.0,0.017]
[1718926829617,0.08447244,65084.0,65078.0,0.0817]
[1718926829823,0.0749,65081.0,65078.0,0.0817]
[1718926830028,0.00957222,65080.0,65078.0,0.0817]
[1718926830230,0.00957222,65079.0,65078.0,0.0817]
[1718926830458,0.0188385,65079.0,65078.0,0.0817]
[1718926831101,0.0188385,65079.0,65078.0,0.0857]
[1718926831293,0.0188385,65079.0,65078.0,0.0927]
[1718926831507,0.02686225,65079.0,65078.0,0.0817]
[1718926832067,0.02686174,65079.0,65078.0,0.0907]
[1718926832756,0.01974788,65079.0,65070.0,0.000946]
[1718926833054,0.0749,65071.0,65064.0,0.29352466]
[1718926833371,0.00957171,65070.0,65066.0,0.19352466]
[1718926833550,0.0749,65071.0,65062.0,0.109493]
[1718926833551,0.00957171,65069.0,65067.0,0.100946]
[1718926833720,0.02683941,65069.0,65067.0,0.100946]
[1718926833906,0.00957171,65069.0,65067.0,0.100946]
[1718926834117,0.02683941,65069.0,65067.0,0.100946]
[1718926834339,0.00957171,65069.0,65067.0,0.100946]
[1718926834539,0.0172677,65069.0,65067.0,0.100946]
[1718926834742,0.01057171,65069.0,65068.0,0.08428172]
[1718926834998,0.02782333,65069.0,65068.0,0.09128172]
[1718926835156,0.001,65069.0,65068.0,0.09128172]
[1718926835367,0.11228517,65069.0,65068.0,0.09128172]
[1718926835573,0.09504054,65069.0,65068.0,0.09128172]
[1718926835790,0.03738517,65069.0,65068.0,0.19568172]
[1718926836007,0.09504054,65069.0,65068.0,0.19568172]
[1718926836204,0.09404054,65069.0,65068.0,0.18768172]
[1718926836641,0.09404054,65069.0,65068.0,0.19368172]
[1718926837350,0.09404054,65069.0,65068.0,0.39120638]
[1718926837542,0.09404054,65069.0,65068.0,0.19768172]
[1718926838565,0.08447027,65069.0,65068.0,0.19768172]
[1718926838765,0.09404054,65069.0,65068.0,0.19768172]
[1718926840295,0.08447027,65069.0,65068.0,0.19768172]
[1718926840694,0.00957027,65069.0,65068.0,0.19768172]
[1718926840903,0.0749,65069.0,65068.0,0.19768172]
[1718926841099,0.08447027,65069.0,65068.0,0.19768172]
[1718926841693,0.0749,65069.0,65068.0,0.19768172]
[1718926841925,0.08447033,65069.0,65068.0,0.19768172]
[1718926842122,0.00957033,65069.0,65068.0,0.19768172]
[1718926842323,0.08447033,65069.0,65068.0,0.39120638]
[1718926845100,0.08447043,65069.0,65068.0,0.39120638]
[1718926846863,0.08447043,65069.0,65068.0,0.19768172]
[1718926847073,0.09575708,65069.0,65068.0,0.0834]
[1718926847296,0.09575708,65069.0,65068.0,0.01]
[1718926847446,0.11298593,65069.0,65068.0,0.01]
[1718926847651,0.10169928,65069.0,65068.0,0.01]
[1718926848281,0.10169894,65069.0,65068.0,0.01]
[1718926848690,0.02679894,65069.0,65068.0,0.01]
[1718926848886,0.10169894,65069.0,65068.0,0.01]
[1718926849376,0.07271051,65069.0,65068.0,0.01]
[1718926849578,0.14761051,65069.0,65068.0,0.01]
[1718926851522,0.13804042,65069.0,65068.0,0.01]
[1718926851704,0.14761032,65069.0,65068.0,0.01]
[1718926852525,0.14761032,65069.0,65068.0,0.006]
[1718926853084,0.14861032,65069.0,65068.0,0.006]
[1718926853295,0.14861032,65069.0,65067.0,0.000946]
[1718926853460,0.0095699,65068.0,65067.0,0.000946]
[1718926853668,0.02679521,65068.0,65067.0,0.000946]
[1718926854823,0.02679518,65068.0,65067.0,0.000946]
[1718926855231,0.02679518,65068.0,65067.0,0.002946]
[1718926857948,0.10169518,65068.0,65067.0,0.002946]
[1718926858184,0.10169512,65068.0,65067.0,0.002946]
[1718926859774,0.02679512,65068.0,65067.0,0.19647066]
[1718926859985,0.10169512,65068.0,65067.0,0.19647066]
[1718926860719,0.10169512,65068.0,65067.0,0.002946]
[1718926861266,0.09212531,65068.0,65067.0,0.002946]
[1718926861465,0.10169511,65068.0,65067.0,0.002946]
[1718926862539,0.10169511,65068.0,65067.0,0.19647066]
[1718926863398,0.10169511,65068.0,65067.0,0.002946]
[1718926863618,0.10169511,65068.0,65067.0,0.19647066]
[1718926864630,0.09212531,65068.0,65067.0,0.19647066]
[1718926864954,0.10169513,65068.0,65067.0,0.19647066]
[1718926866711,0.10169513,65068.0,65067.0,0.002946]
[1718926868100,0.10169513,65068.0,65067.0,0.19647066]
[1718926868292,0.10169513,65068.0,65067.0,0.002946]
[1718926870843,0.10169513,65068.0,65067.0,0.19647066]
[1718926871333,0.10169519,65068.0,65067.0,0.19647066]
[1718926871995,0.09401519,65068.0,65067.0,0.19647066]
[1718926872201,0.1003951,65068.0,65067.0,0.19647066]
[1718926874028,0.1003951,65068.0,65067.0,0.002946]
[1718926874234,0.2050951,65068.0,65067.0,0.002946]
[1718926878005,0.20509688,65068.0,65067.0,0.002946]
[1718926878445,0.20470519,65068.0,65067.0,0.002946]
[1718926881142,0.2047055,65068.0,65067.0,0.002946]
[1718926881573,0.24064281,65068.0,65067.0,0.002946]
[1718926883565,0.24064281,65068.0,65067.0,0.0017098]
[1718926884399,0.20470495,65068.0,65067.0,0.0017098]
[1718926884598,0.10000495,65068.0,65067.0,0.0017098]
[1718926885697,0.02510495,65068.0,65067.0,0.0017098]
[1718926885940,0.10000495,65068.0,65067.0,0.0017098]
[1718926887694,0.10000524,65068.0,65067.0,0.0017098]
[1718926888124,0.13641252,65068.0,65067.0,0.0017098]
[1718926890900,0.13641265,65068.0,65067.0,0.0017098]
[1718926894099,0.12684081,65068.0,65067.0,0.0017098]
[1718926894301,0.10000539,65068.0,65067.0,0.1081558]
[1718926894714,0.10086539,65068.0,65067.0,0.1081558]
[1718926897501,0.10086541,65068.0,65067.0,0.1081558]
[1718926897728,0.02596541,65068.0,65067.0,0.40898046]
[1718926897926,0.01043188,65068.0,65067.0,0.40898046]
[1718926898133,0.02560566,65068.0,65067.0,0.40898046]
[1718926900564,0.01603378,65068.0,65067.0,0.40898046]
[1718926900731,0.02560632,65068.0,65067.0,0.40898046]
[1718926901805,0.02560632,65068.0,65067.0,0.56154158]
[1718926902211,0.01043254,65068.0,65067.0,0.56154158]
[1718926902411,0.02305542,65068.0,65067.0,0.56154158]
[1718926903660,0.01348288,65068.0,65067.0,0.56154158]
[1718926903866,0.02305555,65068.0,65067.0,0.56154158]
[1718926905011,0.02305561,65068.0,65067.0,0.56154158]
[1718926906783,0.02305561,65068.0,65067.0,0.70363964]
[1718926907062,0.00086,65070.0,65069.0,0.02]
[1718926907214,0.00086,65070.0,65069.0,0.6417675]
[1718926907393,0.00086,65070.0,65069.0,0.7417675]
[1718926907598,0.00086,65070.0,65069.0,0.84971424]
[1718926907797,0.01043458,65070.0,65069.0,0.84971424]
[1718926908224,0.01043458,65070.0,65069.0,0.94971424]
[1718926908433,0.02753314,65092.0,65088.0,0.19352466]
[1718926908627,0.0749,65090.0,65089.0,0.19352466]
[1718926908839,0.08515547,65090.0,65089.0,0.19352466]
[1718926909470,0.08515547,65090.0,65089.0,0.21052466]
[1718926909670,0.01267045,65101.0,65089.0,0.19352466]
[1718926909881,0.01267045,65101.0,65091.0,0.19352466]
[1718926910116,0.0749,65092.0,65091.0,0.19352466]
[1718926911177,0.0749,65092.0,65089.0,0.19352466]
[1718926911414,0.0749,65092.0,65091.0,0.19352466]
[1718926911644,0.0779,65092.0,65091.0,0.19352466]
[1718926911871,0.0779,65092.0,65087.0,0.19352466]
[1718926912777,0.0779,65092.0,65088.0,0.19352466]
[1718926912982,0.0749,65092.0,65087.0,0.19352466]
[1718926913185,0.0779,65092.0,65091.0,0.001]
[1718926913812,0.0779,65092.0,65087.0,0.19352466]
[1718926914250,0.0749,65092.0,65087.0,0.19352466]
[1718926914507,0.0779,65092.0,65087.0,0.19352466]
[1718926914709,0.0749,65092.0,65088.0,0.19352466]
[1718926914929,0.0749,65092.0,65087.0,0.19352466]
[1718926916336,0.0779,65092.0,65087.0,0.19352466]
[1718926918290,0.0749,65089.0,65084.0,0.1065]
[1718926918601,0.0749,65086.0,65084.0,0.1065]
[1718926918993,0.00684606,65085.0,65084.0,0.1065]
[1718926919197,0.01642109,65085.0,65084.0,0.1065]
[1718926919403,0.01642109,65085.0,65084.0,0.1095]
[1718926919801,0.01642109,65085.0,65084.0,0.1145]
[1718926920002,0.01642065,65085.0,65084.0,0.1115]
[1718926920220,0.01642065,65085.0,65084.0,0.1065]
[1718926920444,0.01642065,65085.0,65084.0,0.1215]
[1718926920617,0.01742065,65085.0,65084.0,0.1215]
[1718926920833,0.00957459,65085.0,65084.0,0.1065]
[1718926921168,0.01357459,65085.0,65084.0,0.1065]
[1718926921368,0.00957459,65085.0,65084.0,0.1065]
[1718926922285,0.0749,65086.0,65084.0,0.1065]
[1718926922486,0.00884606,65085.0,65084.0,0.1065]
[1718926922649,0.002,65085.0,65084.0,0.1065]
[1718926922848,0.005,65085.0,65084.0,0.1065]
[1718926923244,0.002,65085.0,65084.0,0.1065]
[1718926923682,0.002,65085.0,65081.0,0.1875]
[1718926923847,0.002,65085.0,65078.0,0.07628172]
[1718926923848,0.0749,65083.0,65082.0,0.09995978]
[1718926924046,0.07482776,65083.0,65082.0,0.09995978]
[1718926925104,0.07482776,65083.0,65080.0,0.19352466]
[1718926925305,0.07482776,65083.0,65078.0,0.45730638]
[1718926925530,0.0809,65085.0,65082.0,0.1034]
[1718926925677,0.0789,65085.0,65082.0,0.29692466]
[1718926925879,0.0789,65085.0,65083.0,0.0821]
[1718926926074,0.004,65085.0,65083.0,0.0821]
[1718926926274,0.004,65085.0,65083.0,0.27562466]
[1718926926479,0.004,65085.0,65083.0,0.3229553]
[1718926926698,0.0749,65088.0,65083.0,0.3229553]
[1718926927034,0.002,65085.0,65083.0,0.3219553]
[1718926927384,0.10231889,65088.0,65083.0,0.3219553]
[1718926927581,0.02741889,65088.0,65086.0,0.19352466]
[1718926927922,0.0749,65095.0,65088.0,0.28972466]
[1718926928130,0.0749,65095.0,65089.0,0.18752466]
[1718926928493,0.0749,65095.0,65089.0,0.18352466]
[1718926929569,0.0749,65095.0,65089.0,0.18152466]
[1718926930090,0.0749,65095.0,65090.0,0.0882]
[1718926930336,0.0749,65095.0,65090.0,0.26972466]
[1718926930738,0.10359771,65099.0,65092.0,0.18152466]
[1718926930941,0.0769,65095.0,65090.0,0.26972466]
[1718926931507,0.0769,65095.0,65090.0,0.27072466]
[1718926931707,0.0769,65095.0,65090.0,0.0892]
[1718926932341,0.0749,65095.0,65090.0,0.0892]
[1718926933004,0.0749,65095.0,65090.0,0.0882]
[1718926935690,0.0749,65095.0,65091.0,0.18152466]
[1718926936132,0.17849771,65095.0,65091.0,0.18152466]
[1718926936255,0.10359771,65094.0,65091.0,0.18152466]
[1718926936462,0.10359771,65093.0,65090.0,0.0882]
[1718926936683,0.10359771,65094.0,65090.0,0.26972466]
[1718926936894,0.10359771,65093.0,65090.0,0.26972466]
[1718926937095,0.10359771,65092.0,65090.0,0.26972466]
[1718926937313,0.10359771,65094.0,65090.0,0.26972466]
[1718926937518,0.10359771,65093.0,65090.0,0.26972466]
[1718926937745,0.10359771,65094.0,65088.0,0.1022]
[1718926938003,0.0696436,65103.0,65085.0,0.18152466]
[1718926938004,0.0749,65092.0,65085.0,0.18152466]
[1718926938202,0.0749,65092.0,65075.0,0.18152466]
[1718926938203,0.0749,65086.0,65075.0,0.18152466]
[1718926938352,0.0749,65086.0,65078.0,0.1963]
[1718926938759,0.10359771,65085.0,65079.0,0.1]
[1718926939187,0.0749,65084.0,65079.0,0.1]
[1718926939384,0.1081,65084.0,65079.0,0.1]
[1718926939788,0.1081,65084.0,65077.0,0.1]
[1718926939988,0.10359771,65083.0,65077.0,0.1]
[1718926940149,0.0749,65080.0,65077.0,0.1]
[1718926940350,0.0749,65080.0,65078.0,0.007]
[1718926940749,0.0749,65080.0,65079.0,0.003]
[1718926940952,0.0749,65080.0,65077.0,0.1]
[1718926941417,0.0749,65080.0,65077.0,0.106]
[1718926941574,0.0749,65080.0,65077.0,0.1]
[1718926942273,0.0749,65080.0,65077.0,0.103]
[1718926942474,0.0749,65080.0,65078.0,0.1]
[1718926942656,0.0749,65080.0,65076.0,0.17628172]
[1718926943121,0.0749,65080.0,65077.0,0.006]
[1718926943330,0.0749,65080.0,65079.0,0.006]
[1718926943532,0.0749,65080.0,65076.0,0.17628172]
[1718926943949,0.0749,65080.0,65076.0,0.18728172]
[1718926944203,0.0749,65080.0,65076.0,0.18228172]
[1718926944554,0.0749,65080.0,65079.0,0.005]
[1718926944775,0.0749,65080.0,65076.0,0.18228172]
[1718926945520,0.0749,65080.0,65076.0,0.17628172]
[1718926945879,0.0749,65080.0,65079.0,0.006]
[1718926946350,0.0749,65080.0,65076.0,0.17628172]
[1718926946682,0.0749,65080.0,65076.0,0.18228172]
[1718926946895,0.0749,65080.0,65077.0,0.1]
[1718926947115,0.0749,65080.0,65076.0,0.08228172]
[1718926947314,0.0749,65080.0,65076.0,0.07628172]
[1718926947525,0.0749,65080.0,65079.0,0.001]
[1718926947723,0.0749,65080.0,65076.0,0.07628172]
[1718926948088,0.0749,65080.0,65077.0,0.001]
[1718926948299,0.0749,65080.0,65076.0,0.07628172]
[1718926948767,0.0749,65080.0,65079.0,0.001]
[1718926949790,0.0749,65080.0,65079.0,0.003]
[1718926949994,0.0749,65080.0,65079.0,0.002]
[1718926951022,0.0749,65080.0,65079.0,0.003]
[1718926960921,0.00086,65089.0,65079.0,0.003]
[1718926961138,0.0749,65080.0,65079.0,0.003]
[1718926961764,0.0749,65080.0,65078.0,0.000946]
[1718926962126,0.0749,65080.0,65079.0,0.002]
[1718926962527,0.0749,65080.0,65079.0,0.001]
[1718926962971,0.0749,65080.0,65079.0,0.003]
[1718926963742,0.0749,65080.0,65079.0,0.002]
[1718926964713,0.0749,65080.0,65079.0,0.006]
[1718926974091,0.11539989,65080.0,65079.0,0.006]
[1718926977069,0.14282402,65080.0,65079.0,0.006]
[1718926978197,0.0749,65080.0,65079.0,0.006]
[1718926981536,0.0749,65080.0,65079.0,0.1876]
[1718926984695,0.10310537,65088.0,65079.0,0.1876]
[1718926984881,0.0749,65080.0,65079.0,0.1876]
[1718926985081,0.0749,65080.0,65078.0,0.000946]
[1718926986119,0.0749,65080.0,65070.0,0.18152466]
[1718926986120,0.0668,65079.0,65075.0,0.101146]
[1718926986269,0.0749,65076.0,65069.0,0.07628172]
[1718926986466,0.0749,65072.0,65069.0,0.07628172]
[1718926986667,0.00957247,65071.0,65069.0,0.07628172]
[1718926986969,0.00957247,65070.0,65069.0,0.07628172]
[1718926987374,0.01671264,65070.0,65069.0,0.12621116]
[1718926988098,0.01671264,65070.0,65069.0,0.21821116]
[1718926988323,0.00957247,65070.0,65069.0,0.20421116]
[1718926988697,0.00957247,65070.0,65069.0,0.21821116]
[1718926989097,0.0749,65072.0,65071.0,0.15532944]
[1718926989357,0.08447254,65072.0,65071.0,0.1054]
[1718926989590,0.08447254,65072.0,65071.0,0.15532944]
[1718926990497,0.08447254,65072.0,65071.0,0.16932944]
[1718926990877,0.08447254,65072.0,65071.0,0.18332944]
[1718926990878,0.08547254,65072.0,65071.0,0.18332944]
[1718926991264,0.08547254,65072.0,65071.0,0.1334]
[1718926991625,0.08547254,65072.0,65071.0,0.18332944]
[1718926992311,0.0759,65072.0,65071.0,0.18332944]
[1718926992465,0.08547266,65072.0,65071.0,0.18332944]
[1718926993376,0.08547266,65072.0,65071.0,0.028]
[1718926994037,0.08547266,65072.0,65071.0,0.1334]
[1718926994393,0.08547266,65072.0,65071.0,0.028]
[1718926995714,0.08447266,65072.0,65071.0,0.014]
[1718926995915,0.08447266,65072.0,65069.0,0.07628172]
[1718926996161,0.0749,65072.0,65071.0,0.005]
[1718926996374,0.11247044,65072.0,65071.0,0.008]
[1718926996770,0.11247044,65072.0,65069.0,0.07628172]
[1718926996978,0.11247044,65072.0,65070.0,0.0771]
[1718926996979,0.00957261,65071.0,65070.0,0.0771]
[1718926997337,0.06545772,65072.0,65071.0,0.18152466]
[1718926997537,0.0095726,65072.0,65071.0,0.29672466]
[1718926997943,0.00957262,65072.0,65071.0,0.29672466]
[1718926998399,0.00957262,65072.0,65071.0,0.30272466]
[1718926998819,0.00957262,65072.0,65071.0,0.28572466]
[1718926999524,0.00957262,65072.0,65071.0,0.29272466]
[1718926999971,0.00957262,65072.0,65071.0,0.37592466]
[1718927002211,0.00957263,65072.0,65071.0,0.38182466]
[1718927002411,0.00957263,65072.0,65071.0,0.2003]
[1718927003468,0.00957263,65072.0,65071.0,0.38182466]
[1718927003684,0.00957263,65072.0,65071.0,0.39882466]
[1718927003892,0.00957263,65072.0,65071.0,0.4487541]
[1718927005419,0.0749,65079.0,65078.0,0.18152466]
[1718927005624,0.08447327,65079.0,65078.0,0.18152466]
[1718927006007,0.00957327,65079.0,65078.0,0.26462466]
[1718927006356,0.08447327,65079.0,65078.0,0.26462466]
[1718927006770,0.08647327,65079.0,65078.0,0.26462466]
[1718927006947,0.01157327,65079.0,65078.0,0.26462466]
[1718927008598,0.01157327,65079.0,65078.0,0.0831]
[1718927008599,0.01557327,65079.0,65078.0,0.0831]
[1718927009567,0.01357327,65079.0,65078.0,0.0831]
[1718927009945,0.08947327,65079.0,65078.0,0.0831]
[1718927010281,0.08847327,65079.0,65078.0,0.0831]
[1718927010910,0.08447327,65079.0,65078.0,0.0831]
[1718927011133,0.08547327,65079.0,65078.0,0.0831]
[1718927011457,0.08547327,65079.0,65078.0,0.26462466]
[1718927011606,0.08547327,65079.0,65078.0,0.0831]
[1718927011806,0.0759,65079.0,65078.0,0.0831]
[1718927012007,0.08547411,65079.0,65078.0,0.0831]
[1718927012242,0.08547422,65079.0,65078.0,0.0831]
[1718927012702,0.08547422,65079.0,65073.0,0.04992944]
[1718927012873,0.0749,65074.0,65073.0,0.04992944]
[1718927013096,0.08447424,65074.0,65073.0,0.04992944]
[1718927014649,0.08447424,65074.0,65073.0,0.05592944]
[1718927015111,0.0749,65074.0,65073.0,0.05592944]
[1718927015295,0.08447412,65074.0,65073.0,0.05592944]
[1718927015487,0.08447412,65074.0,65073.0,0.04992944]
[1718927015850,0.08447412,65074.0,65073.0,0.05292944]
[1718927016057,0.08440709,65074.0,65073.0,0.04992944]
[1718927016255,0.08440709,65074.0,65073.0,0.05692944]
[1718927016656,0.08440709,65074.0,65073.0,0.04992944]
[1718927017101,0.08440709,65074.0,65073.0,0.05392944]
[1718927018130,0.08440709,65074.0,65073.0,0.05792944]
[1718927018351,0.07483297,65074.0,65073.0,0.05792944]
[1718927018683,0.07483297,65074.0,65073.0,0.05392944]
[1718927018684,0.08440707,65074.0,65073.0,0.05392944]
[1718927018878,0.08440707,65074.0,65073.0,0.05692944]
[1718927021750,0.08440692,65074.0,65073.0,0.05692944]
[1718927024699,0.08440692,65074.0,65073.0,0.05392944]
[1718927024811,0.08440692,65074.0,65073.0,0.05192944]
[1718927025023,0.08440691,65074.0,65073.0,0.05192944]
[1718927025234,0.08440691,65074.0,65073.0,0.04992944]
[1718927025473,0.08440691,65074.0,65073.0,0.05292944]
[1718927025680,0.08440691,65074.0,65073.0,0.05592944]
[1718927026197,0.08440691,65074.0,65073.0,0.05292944]
[1718927026583,0.08440691,65074.0,65073.0,0.05692944]
[1718927027391,0.08440691,65074.0,65073.0,0.007]
[1718927027610,0.08440691,65074.0,65073.0,0.05692944]
[1718927028040,0.07483297,65074.0,65073.0,0.05692944]
[1718927028280,0.11180226,65074.0,65073.0,0.05692944]
[1718927029436,0.11180262,65074.0,65073.0,0.05692944]
[1718927031330,0.10222834,65074.0,65073.0,0.05692944]
[1718927031523,0.11180411,65074.0,65073.0,0.05692944]
[1718927034773,0.11180424,65074.0,65073.0,0.05692944]
[1718927035355,0.11180424,65074.0,65069.0,0.16128172]
[1718927035356,0.11180424,65074.0,65069.0,0.07628172]
[1718927035561,0.0749,65070.0,65069.0,0.07628172]
[1718927035762,0.0095759,65070.0,65069.0,0.18308172]
[1718927036848,0.0095759,65070.0,65069.0,0.18608172]
[1718927036849,0.0844759,65070.0,65069.0,0.18608172]
[1718927037522,0.0844759,65070.0,65069.0,0.19008172]
[1718927037961,0.08447518,65070.0,65069.0,0.19008172]
[1718927038149,0.08447518,65070.0,65069.0,0.18308172]
[1718927038313,0.08547518,65070.0,65069.0,0.19208172]
[1718927038735,0.08647518,65070.0,65069.0,0.20008172]
[1718927038899,0.08447518,65070.0,65069.0,0.18308172]
[1718927039304,0.08447518,65070.0,65069.0,0.18808172]
[1718927039728,0.08447518,65070.0,65069.0,0.19208172]
[1718927040548,0.08447518,65070.0,65069.0,0.27698172]
[1718927041149,0.0749,65070.0,65069.0,0.27698172]
[1718927041326,0.08447515,65070.0,65069.0,0.27698172]
[1718927041749,0.08447515,65070.0,65069.0,0.45850638]
[1718927041955,0.08447515,65070.0,65069.0,0.27698172]
[1718927044183,0.08447539,65070.0,65069.0,0.27698172]
[1718927044610,0.08447462,65070.0,65069.0,0.45850638]
[1718927044817,0.08447462,65070.0,65069.0,0.47550638]
[1718927045014,0.00957462,65070.0,65069.0,0.52543582]
[1718927045602,0.00957462,65070.0,65069.0,0.52143582]
[1718927046003,0.00957462,65070.0,65069.0,0.51943582]
[1718927046200,0.00957462,65070.0,65069.0,0.51643582]
[1718927046403,0.00957462,65070.0,65069.0,0.51943582]
[1718927046589,0.00957462,65070.0,65069.0,0.52343582]
[1718927047561,0.00982272,65070.0,65069.0,0.33173582]
[1718927047777,0.00982272,65070.0,65069.0,0.51093582]
[1718927047911,0.00982232,65070.0,65069.0,0.51093582]
[1718927048115,0.00982232,65070.0,65069.0,0.51593582]
[1718927048312,0.00982232,65070.0,65069.0,0.49893582]
[1718927049128,0.00982232,65070.0,65069.0,0.31741116]
[1718927050518,0.04691688,65070.0,65069.0,0.23471116]
[1718927050719,0.00982232,65070.0,65069.0,0.23471116]
[1718927050922,0.0749,65072.0,65070.0,0.00768]
[1718927051127,0.00968536,65071.0,65070.0,0.00768]
[1718927052264,0.04594663,65083.0,65070.0,0.07502956]
[1718927052559,0.65914863,65082.0,65077.0,0.07628172]
[1718927052704,0.0749,65078.0,65077.0,0.07628172]
[1718927054944,0.03710729,65087.0,65077.0,0.07628172]
[1718927055281,0.0749,65078.0,65077.0,0.18028172]
[1718927055490,0.0809,65078.0,65077.0,0.18128172]
[1718927055695,0.0749,65078.0,65077.0,0.18028172]
[1718927055838,0.07576,65078.0,65077.0,0.17928172]
[1718927056040,0.08976,65078.0,65077.0,0.18128172]
[1718927056450,0.08976,65078.0,65077.0,0.18028172]
[1718927056721,0.07576,65078.0,65077.0,0.17928172]
[1718927056879,0.08176,65078.0,65077.0,0.18028172]
[1718927057082,0.08676,65078.0,65077.0,0.18028172]
[1718927057283,0.08076,65078.0,65077.0,0.17928172]
[1718927057927,0.08076,65078.0,65076.0,0.0778]
[1718927057928,0.08076,65078.0,65070.0,0.121959]
[1718927058113,0.0749,65071.0,65070.0,0.121959]
[1718927059468,0.0749,65071.0,65070.0,0.125959]
[1718927060231,0.0759,65071.0,65070.0,0.01468]
[1718927061719,0.0759,65071.0,65070.0,0.07902956]
[1718927064981,0.0759,65071.0,65070.0,0.07898376]
[1718927065383,0.0759,65071.0,65070.0,0.1289132]
[1718927068384,0.1121827,65071.0,65070.0,0.1289132]
[1718927068816,0.1121827,65071.0,65070.0,0.41483786]
[1718927069074,0.1121827,65071.0,65070.0,0.43183786]
[1718927069736,0.1121827,65071.0,65070.0,0.50730366]
[1718927069936,0.1121827,65071.0,65070.0,0.49030366]
[1718927070584,0.1121827,65071.0,65070.0,0.50730366]
[1718927072415,0.1121827,65071.0,65070.0,0.4429541]
[1718927072591,0.1121827,65071.0,65070.0,0.50730366]
[1718927073668,0.1121827,65071.0,65070.0,0.50725174]
[1718927074080,0.1121827,65071.0,65070.0,0.30872708]
[1718927074284,0.1045627,65071.0,65070.0,0.30872708]
[1718927074480,0.03369529,65085.0,65070.0,0.30872708]
[1718927074689,0.0749,65071.0,65070.0,0.30872708]
[1718927074981,0.0749,65071.0,65070.0,0.19444808]
[1718927075157,0.0749,65071.0,65070.0,0.25879764]
[1718927075359,0.0749,65071.0,65070.0,0.25579764]
[1718927075559,0.0749,65071.0,65070.0,0.25679764]
[1718927076167,0.0749,65071.0,65070.0,0.25579764]
[1718927076363,0.0749,65071.0,65070.0,0.26179764]
[1718927076568,0.0759,65071.0,65070.0,0.26179764]
[1718927077007,0.0759,65071.0,65070.0,0.31172708]
[1718927078910,0.0759,65071.0,65070.0,0.19744808]
[1718927079202,0.0759,65071.0,65070.0,0.26179764]
[1718927079407,0.0759,65071.0,65070.0,0.00994808]
[1718927079607,0.0759,65071.0,65070.0,0.07429764]
[1718927086900,0.0759,65071.0,65070.0,0.37179764]
[1718927087850,0.0759,65071.0,65070.0,0.45559764]
[1718927088388,0.001,65071.0,65070.0,0.45555172]
[1718927088703,0.1109334,65071.0,65070.0,0.49780454]
[1718927088870,0.0759,65071.0,65070.0,0.49780454]
[1718927089249,0.0759,65071.0,65070.0,0.49875054]
[1718927090495,0.0759,65071.0,65070.0,0.53167998]
[1718927090496,0.001,65071.0,65070.0,0.53167998]
[1718927090714,0.0759,65071.0,65070.0,0.53167998]
[1718927090904,0.0759,65071.0,65070.0,0.54867998]
[1718927091306,0.0759,65071.0,65070.0,0.50642716]
[1718927091806,0.0759,65071.0,65070.0,0.52342716]
[1718927092010,0.0759,65071.0,65070.0,0.4590776]
[1718927092177,0.0759,65071.0,65070.0,0.52342716]
[1718927093112,0.0759,65071.0,65070.0,0.50642716]
[1718927093883,0.0759,65071.0,65070.0,0.30642716]
[1718927094935,0.0759,65071.0,65070.0,0.50642716]
[1718927095137,0.0759,65071.0,65070.0,0.30642716]
[1718927101214,0.11118039,65071.0,65070.0,0.30642716]
[1718927103081,0.11118039,65071.0,65070.0,0.22262716]
[1718927103568,0.11118039,65071.0,65070.0,0.01084816]
[1718927105134,0.13871172,65071.0,65070.0,0.01084816]
[1718927106463,0.06381172,65071.0,65070.0,0.01084816]
[1718927106668,0.13871172,65071.0,65070.0,0.01084816]
[1718927107061,0.13863456,65071.0,65070.0,0.01084816]
[1718927107921,0.06373456,65071.0,65070.0,0.01084816]
[1718927108130,0.13863456,65071.0,65070.0,0.01084816]
[1718927111197,0.13863456,65071.0,65070.0,0.08954816]
[1718927117133,0.06373456,65071.0,65070.0,0.0607776]
[1718927117368,0.06373456,65071.0,65070.0,0.2453776]
[1718927117369,0.13863456,65071.0,65070.0,0.2453776]